bitfinex/quotes_ETHUSD_20251110
["timestamp","ask_amount","ask_price","bid_price","bid_amount"]
[1762743677450,2.74792522,3639.2,3638.3,4.00822697]
[1762743677633,0.27479252,3639.1,3638.2,1.259712]
[1762743677951,2.74773488,3639.4,3638.4,2.748442]
[1762743677952,2.74783794,3639.3,3638.4,2.748442]
[1762743678244,0.261,3639.3,3638.4,2.748442]
[1762743678424,2.74793853,3639.1,3638.4,1.259712]
[1762743678610,0.261,3639.2,3638.4,1.259712]
[1762743678814,3.30982245,3639.1,3638.2,1.259712]
[1762743679135,0.56187916,3639.1,3638.2,2.74861195]
[1762743679335,3.30981739,3639.1,3638.3,2.74851304]
[1762743679535,0.33098174,3639.0,3638.3,2.74851304]
[1762743679740,2.74808608,3638.9,3637.9,0.1901]
[1762743680038,0.0278,3638.0,3637.4,2.74914773]
[1762743680239,1.259712,3639.4,3637.1,0.1901]
[1762743680240,0.1304,3638.1,3637.8,2.74891417]
[1762743680536,0.1304,3638.1,3637.5,1.259712]
[1762743680706,0.1304,3638.1,3637.7,2.74898482]
[1762743680903,0.1304,3638.1,3637.5,2.74913532]
[1762743681130,0.41830005,3638.1,3637.9,2.74883833]
[1762743681318,0.1304,3638.1,3637.1,0.6646]
[1762743681520,2.74788378,3639.2,3638.2,2.74858816]
[1762743681842,1.09009817,3639.1,3637.5,1.665216]
[1762743682040,2.74811616,3638.9,3637.7,0.405504]
[1762743682243,0.2609,3639.1,3637.7,0.405504]
[1762743682244,0.2609,3639.0,3638.3,2.74847978]
[1762743682413,0.2609,3639.0,3637.8,2.74891417]
[1762743682609,3.00853702,3639.5,3638.7,2.74816837]
[1762743682808,0.1305,3639.7,3638.0,2.74876305]
[1762743682809,0.1305,3639.7,3638.0,4.29778049]
[1762743683041,0.1305,3639.7,3638.8,0.405504]
[1762743683042,0.25371781,3639.6,3638.8,0.405504]
[1762743683208,0.25371781,3639.6,3638.6,3.89227649]
[1762743683209,0.2609,3639.6,3638.4,0.405504]
[1762743683541,0.2609,3639.6,3639.1,2.74788172]
[1762743683710,0.2609,3639.2,3638.5,0.405504]
[1762743683920,0.2609,3639.2,3639.1,2.74793218]
[1762743684121,0.1305,3639.7,3639.1,0.6761]
[1762743684328,0.1305,3639.7,3638.5,0.405504]
[1762743684329,0.1305,3639.7,3639.3,2.74772113]
[1762743684557,0.1305,3639.7,3638.8,0.43298558]
[1762743684858,3.00790837,3640.4,3639.6,2.74755467]
[1762743685057,4.26086355,3640.3,3639.6,2.74755467]
[1762743685230,0.3914,3639.7,3638.7,0.1901]
[1762743685435,0.3914,3639.7,3639.3,2.74777367]
[1762743685631,0.3914,3639.7,3639.1,2.74792851]
[1762743685856,0.1305,3639.8,3638.9,2.74808321]
[1762743686057,0.1305,3639.8,3638.8,2.74815873]
[1762743686058,0.1305,3639.8,3638.8,0.405504]
[1762743686257,0.25432,3639.7,3639.1,2.747917]
[1762743686558,0.25432,3639.6,3639.2,2.74785048]
[1762743686720,0.1368,3639.7,3639.0,0.1368]
[1762743686919,0.25462667,3639.6,3639.0,0.1368]
[1762743687136,0.25462667,3639.5,3639.0,0.1368]
[1762743687338,3.43878381,3643.9,3639.6,0.4661]
[1762743687339,2.7463605,3641.2,3639.6,0.4661]
[1762743687535,0.1305,3643.2,3639.6,0.4661]
[1762743687536,0.25498167,3640.9,3639.7,0.405504]
[1762743687760,0.25498167,3640.8,3640.7,2.74672453]
[1762743687964,0.1304,3641.4,3640.7,2.74672453]
[1762743688152,0.25490417,3641.3,3640.2,0.864904]
[1762743688349,0.25490417,3641.2,3640.5,0.405504]
[1762743688534,0.25490417,3641.1,3640.9,2.74657301]
[1762743688730,0.25490417,3641.0,3640.9,2.74657301]
[1762743689554,0.25490417,3641.0,3640.9,3.21267301]
[1762743689728,2.87535178,3643.2,3640.7,2.74671751]
[1762743689729,0.1304,3641.8,3640.7,2.7466605]
[1762743690067,0.25547226,3641.7,3640.3,0.405504]
[1762743690228,0.25547226,3641.6,3640.6,2.74677168]
[1762743690428,2.74624827,3641.4,3640.6,2.74677168]
[1762743690664,2.74624827,3641.4,3640.1,1.259712]
[1762743690665,0.2609,3640.7,3640.1,1.259712]
[1762743690861,3.00769409,3640.7,3639.4,1.99124199]
[1762743691066,0.2609,3640.7,3640.0,1.259712]
[1762743691358,0.51624275,3640.6,3639.4,2.74766426]
[1762743691659,3.00222189,3640.5,3639.7,1.259712]
[1762743691959,0.25534275,3640.4,3639.8,1.259712]
[1762743692166,0.25534275,3640.3,3639.3,0.1828]
[1762743692341,0.1305,3639.8,3639.3,2.747749]
[1762743692673,0.25537214,3639.7,3639.1,2.74791336]
[1762743692960,0.25537214,3639.6,3638.7,0.6495]
[1762743693278,0.25537214,3639.5,3639.0,1.259712]
[1762743693447,2.87791411,3639.8,3639.0,2.74796633]
[1762743693448,3.19178162,3639.8,3639.0,2.74796633]
[1762743693642,3.48878381,3643.7,3639.5,2.74757017]
[1762743693643,0.25544068,3639.7,3639.5,2.74757017]
[1762743693862,0.25544068,3639.6,3639.5,2.74757017]
[1762743694445,0.25544068,3639.6,3639.5,3.21367017]
[1762743695133,1.259712,3640.7,3639.5,3.21367017]
[1762743695134,0.2609,3640.7,3639.6,2.74748838]
[1762743695331,0.2609,3640.7,3639.1,1.901912]
[1762743695332,3.26306073,3640.6,3639.7,2.74746233]
[1762743695531,3.00222618,3640.5,3639.6,2.74753927]
[1762743695745,0.25535069,3640.4,3639.6,2.74750521]
[1762743695942,0.25535069,3640.3,3639.2,0.4594]
[1762743696289,0.25535069,3640.2,3639.3,0.405504]
[1762743696432,0.25535069,3640.1,3639.5,2.74761009]
[1762743696774,0.25535069,3640.0,3639.3,3.1532213]
[1762743696979,0.2609,3640.4,3639.6,2.74748771]
[1762743697174,0.55611278,3640.3,3639.6,2.74748459]
[1762743697348,0.1368,3640.1,3639.6,2.74748459]
[1762743697850,0.25530178,3640.0,3639.7,2.74746136]
[1762743698053,0.1368,3640.1,3639.7,2.74746136]
[1762743698261,0.1368,3640.1,3639.5,4.14414178]
[1762743698262,0.25534021,3640.0,3639.5,2.88440526]
[1762743698465,0.1368,3640.1,3639.5,2.88440526]
[1762743698780,0.25534394,3640.0,3639.5,0.1368]
[1762743699009,0.1368,3639.5,3638.8,2.88495197]
[1762743699208,0.1368,3639.5,3638.8,0.1368]
[1762743699209,0.25534433,3639.4,3638.8,0.1368]
[1762743699506,0.1368,3639.5,3639.1,2.74787216]
[1762743699726,0.1368,3639.5,3639.1,2.74792568]
[1762743699863,0.1368,3639.5,3638.9,2.74807297]
[1762743700064,0.1368,3639.5,3638.8,0.5962]
[1762743700322,0.1368,3639.5,3639.1,2.74786732]
[1762743700517,0.1368,3639.5,3638.9,2.74801959]
[1762743700813,0.25557272,3639.4,3638.8,0.1368]
[1762743700968,0.1368,3639.5,3638.8,0.1368]
[1762743703207,0.2609,3638.7,3638.6,0.1368]
[1762743703368,0.2609,3638.7,3638.2,0.1368]
[1762743703369,0.51663215,3638.7,3638.2,0.1368]
[1762743703698,0.25573215,3638.6,3638.2,0.1368]
[1762743704004,0.2609,3638.7,3638.2,0.1368]
[1762743704005,0.25573215,3638.5,3638.2,0.1368]
[1762743704193,0.25573215,3638.4,3638.2,0.1368]
[1762743704389,2.88495957,3638.8,3638.2,0.1368]
[1762743704702,0.25600743,3638.7,3638.2,0.1368]
[1762743704999,0.25600743,3638.6,3638.2,0.1368]
[1762743705217,0.25600743,3638.5,3638.2,0.1368]
[1762743705403,0.25600743,3638.4,3638.2,0.1368]
[1762743705720,0.5169362,3638.3,3637.8,0.1368]
[1762743705881,0.2560362,3638.2,3637.8,0.1368]
[1762743706068,0.2560362,3638.1,3637.8,0.1368]
[1762743706402,0.1368,3638.4,3637.8,0.1368]
[1762743706615,0.3913,3637.9,3637.5,0.1368]
[1762743707193,0.3913,3637.9,3637.2,2.74930422]
[1762743707382,0.25599982,3637.8,3637.3,0.1368]
[1762743707585,0.25599982,3637.7,3637.3,0.1368]
[1762743707799,3.27695264,3637.9,3637.3,0.1368]
[1762743707800,0.25599982,3637.6,3637.3,0.1368]
[1762743707994,0.25601514,3637.5,3637.3,0.1368]
[1762743708197,0.2672,3637.9,3637.3,0.1368]
[1762743708384,0.2558991,3637.8,3637.4,2.74919234]
[1762743708606,0.2672,3637.9,3637.4,2.74919234]
[1762743708783,0.25588667,3637.8,3637.3,0.1368]
[1762743708987,0.25588667,3637.7,3637.3,0.1368]
[1762743709222,0.2609,3637.4,3636.8,2.74965929]
[1762743709382,0.2609,3637.4,3636.8,0.1368]
[1762743709383,0.1368,3637.4,3636.8,0.1368]
[1762743709584,0.1368,3637.7,3637.3,2.7492693]
[1762743709803,0.1368,3637.7,3637.1,2.74944323]
[1762743709804,0.25578943,3637.6,3637.1,2.74944323]
[1762743710004,0.1368,3637.7,3637.2,2.74936764]
[1762743711041,0.25573256,3637.6,3637.0,0.1368]
[1762743711206,0.1368,3637.7,3637.0,0.1368]
[1762743711391,0.1368,3637.7,3637.3,2.74926838]
[1762743711587,0.1368,3637.7,3637.0,0.1368]
[1762743711835,2.88580109,3637.7,3637.0,2.88630169]
[1762743712396,0.1368,3637.7,3637.1,2.74942448]
[1762743712595,0.1368,3637.7,3637.2,2.74935715]
[1762743712899,0.1368,3637.7,3637.1,2.74942181]
[1762743713210,0.1368,3637.7,3637.1,2.7494382]
[1762743713412,0.1368,3637.7,3637.0,0.1368]
[1762743713627,2.8858123,3637.7,3637.0,0.1368]
[1762743713796,0.1368,3637.7,3637.1,2.74944323]
[1762743714340,0.1368,3637.7,3637.0,2.88630261]
[1762743714651,0.1368,3637.7,3637.1,2.74944323]
[1762743714850,0.1368,3637.7,3637.2,2.74936698]
[1762743715349,0.1368,3637.7,3637.1,2.74942807]
[1762743715505,0.1368,3637.7,3637.0,0.1368]
[1762743715698,2.74906612,3637.6,3636.9,2.74956929]
[1762743715903,0.1368,3637.3,3636.8,2.92975586]
[1762743716535,0.1368,3637.3,3636.8,0.1801]
[1762743716739,0.1368,3637.3,3636.8,2.92976091]
[1762743717649,0.1368,3637.3,3636.8,2.92974269]
[1762743718206,0.1304,3637.9,3637.2,3.21446764]
[1762743718455,0.1304,3637.9,3637.3,2.74923928]
[1762743718807,0.1304,3637.9,3637.2,2.74935295]
[1762743719028,0.1304,3637.9,3637.0,2.74951883]
[1762743719301,0.1304,3637.9,3636.9,0.4543]
[1762743719504,2.87924152,3637.9,3637.3,2.74924249]
[1762743720037,2.87924543,3637.9,3637.3,2.74924249]
[1762743720263,2.87924543,3637.9,3637.4,3.60299998]
[1762743720603,3.14014563,3637.9,3637.4,3.60299998]
[1762743720940,3.14014563,3637.9,3636.9,0.85405148]
[1762743720941,0.002,3637.7,3636.9,0.85405148]
[1762743721147,0.002,3637.7,3637.6,2.74906531]
[1762743721304,0.002,3637.7,3637.2,2.7493293]
[1762743721305,0.002,3637.7,3637.2,0.405504]
[1762743721533,0.002,3637.7,3637.2,0.4543]
[1762743721746,0.002,3637.7,3637.6,0.4651]
[1762743721944,0.002,3637.7,3637.6,3.66846531]
[1762743722150,0.002,3637.7,3637.6,4.34046711]
[1762743722349,0.002,3637.7,3637.6,9.92549991]
[1762743722555,0.25560373,3639.1,3638.5,2.74836527]
[1762743722851,2.74775967,3639.4,3638.6,2.74830094]
[1762743723010,3.00337667,3639.3,3638.6,2.74830094]
[1762743723342,0.2629,3639.8,3638.7,0.48178234]
[1762743723554,2.74783358,3639.3,3638.6,3.60299998]
[1762743723711,0.27478336,3639.2,3638.6,3.60299998]
[1762743724120,0.3953,3638.7,3638.6,3.60299998]
[1762743724326,0.3953,3638.7,3637.6,1.259712]
[1762743724521,2.74830978,3638.6,3637.6,3.60299998]
[1762743724834,2.74830978,3638.6,3637.6,2.74906206]
[1762743724835,2.74848152,3638.4,3637.6,2.74906206]
[1762743725160,3.0627607,3638.5,3637.4,2.77670863]
[1762743725339,3.0042924,3638.4,3637.3,0.4543]
[1762743725524,0.31436098,3638.5,3637.3,0.4543]
[1762743725858,2.74863945,3638.2,3637.4,2.74921647]
[1762743726164,0.2629,3638.5,3637.3,3.20358098]
[1762743726373,0.51885237,3638.4,3637.3,0.4543]
[1762743726526,0.25595379,3638.3,3637.3,0.4543]
[1762743726866,0.2629,3637.4,3636.9,0.73152999]
[1762743727030,3.26745244,3638.3,3637.2,2.74930842]
[1762743727031,0.2629,3638.3,3637.2,2.74930842]
[1762743727230,0.51901669,3638.2,3637.0,3.20379081]
[1762743727558,2.74885275,3637.9,3637.2,2.74935097]
[1762743727973,0.2629,3638.2,3637.0,0.4543]
[1762743728270,0.1324,3638.7,3636.9,2.88639443]
[1762743728271,0.1368,3637.5,3636.9,2.88639443]
[1762743728434,0.1368,3637.5,3636.9,0.5911]
[1762743728647,0.1368,3637.5,3637.1,2.74943231]
[1762743728956,4.27093091,3638.6,3637.4,0.4651]
[1762743729182,3.00464539,3638.5,3637.4,0.4651]
[1762743729347,2.74855913,3638.3,3637.6,2.74905997]
[1762743729550,0.25625456,3638.2,3637.9,2.74882573]
[1762743729771,2.74815592,3638.9,3637.9,2.74882573]
[1762743729772,2.74815592,3638.9,3637.9,3.20312573]
[1762743729957,0.2629,3639.0,3637.9,3.20313573]
[1762743729958,0.2563408,3638.6,3637.9,3.20313573]
[1762743730172,2.74696475,3640.4,3638.0,0.48178763]
[1762743730173,0.2563408,3638.5,3638.0,0.48178763]
[1762743730375,2.87762918,3640.2,3638.6,0.4651]
[1762743730682,2.87762918,3640.2,3638.9,0.405504]
[1762743730683,0.54417247,3640.1,3638.9,0.405504]
[1762743730885,0.25640955,3640.0,3639.0,0.74981147]
[1762743731053,0.25640955,3639.9,3639.0,0.859804]
[1762743731248,0.25640955,3639.8,3639.1,0.6395]
[1762743731450,0.25640955,3639.7,3639.6,2.74755467]
[1762743731691,0.25640955,3639.7,3639.2,3.20215667]
[1762743731872,2.74718604,3640.1,3639.2,0.4543]
[1762743732072,2.74718604,3640.1,3639.1,0.1852]
[1762743732073,2.74745373,3639.8,3639.1,0.1852]
[1762743732250,0.25639961,3639.7,3639.0,0.405504]
[1762743732454,2.74733457,3639.9,3639.1,2.74793218]
[1762743732661,0.83459387,3639.8,3638.9,0.6395]
[1762743732861,0.25636604,3639.7,3639.2,2.74780306]
[1762743733063,0.3934,3640.2,3639.1,2.74791801]
[1762743733266,0.3934,3640.2,3639.1,2.74793218]
[1762743733267,1.51600401,3640.1,3639.1,2.74793218]
[1762743733549,0.25629201,3640.0,3639.0,0.4543]
[1762743733889,0.25629201,3639.9,3638.9,0.1852]
[1762743734080,2.74772839,3639.4,3638.6,2.74825269]
[1762743734277,2.74772839,3639.4,3638.4,0.73602287]
[1762743734278,0.27477284,3639.3,3638.4,0.73602287]
[1762743734587,2.74785819,3639.2,3638.5,2.74837639]
[1762743734777,2.87767585,3640.2,3639.2,0.6503]
[1762743734985,2.87767585,3640.2,3638.6,0.02748309]
[1762743734986,0.28777945,3639.9,3638.7,0.405504]
[1762743735303,0.25625228,3639.8,3638.8,0.4543]
[1762743735500,2.74742792,3639.8,3639.0,2.74795441]
[1762743735655,2.74742792,3639.8,3639.1,2.74792595]
[1762743735850,2.7473242,3640.0,3638.9,0.4543]
[1762743736094,0.1305,3640.2,3638.9,0.4543]
[1762743736095,0.3140727,3639.9,3639.5,2.74755606]
[1762743736400,0.1305,3640.2,3639.4,0.1852]
[1762743736669,0.1305,3640.2,3639.6,2.74754391]
[1762743736670,0.256039,3640.1,3639.6,2.74754391]
[1762743736812,0.256039,3640.1,3639.4,2.93287996]
[1762743736813,0.31335901,3640.1,3639.7,2.74747845]
[1762743737120,0.31335901,3640.1,3638.9,0.82157971]
[1762743737121,0.2629,3639.5,3638.9,2.74807622]
[1762743737322,0.2629,3639.5,3638.9,2.74803689]
[1762743737650,2.74746914,3639.8,3639.0,2.74800723]
[1762743737856,0.5757688,3639.7,3638.8,0.4543]
[1762743738059,0.1305,3640.2,3639.3,2.74775281]
[1762743738356,0.1305,3640.2,3638.9,0.859804]
[1762743738357,0.25585678,3640.1,3638.9,0.859804]
[1762743738647,1.259712,3640.5,3639.7,2.7474298]
[1762743738809,0.1305,3640.6,3639.7,2.7474298]
[1762743738810,0.55682711,3640.4,3639.7,2.7474298]
[1762743739011,0.1368,3640.1,3639.7,2.7474298]
[1762743739423,0.1368,3640.1,3639.8,2.7473973]
[1762743739649,0.1368,3640.1,3639.2,0.1852]
[1762743739650,0.2629,3639.8,3639.2,0.1852]
[1762743739836,0.0239,3639.6,3638.9,0.405504]
[1762743740029,0.0239,3639.6,3639.0,2.74799798]
[1762743740364,0.0239,3639.6,3638.9,0.405504]
[1762743740365,0.2605,3639.0,3638.4,1.259712]
[1762743740566,0.2649,3640.1,3638.5,0.4543]
[1762743740783,2.74732822,3639.9,3638.1,0.92122287]
[1762743740945,1.84228148,3639.8,3638.4,2.74839707]
[1762743741142,1.84228148,3639.8,3638.2,0.4543]
[1762743741143,3.00328634,3639.7,3638.2,0.4543]
[1762743741363,2.7477843,3639.3,3638.3,0.4543]
[1762743741577,3.33710891,3639.8,3638.3,1.714012]
[1762743741738,2.74779838,3639.3,3638.6,2.74828197]
[1762743741940,2.74783566,3639.3,3638.4,0.4543]
[1762743742249,2.74753866,3639.7,3638.4,0.4543]
[1762743742444,2.74792194,3639.2,3638.4,3.20275425]
[1762743742661,2.74792194,3639.2,3638.5,2.74837559]
[1762743743041,2.74774269,3639.4,3638.4,0.4543]
[1762743743275,2.74774269,3639.4,3638.5,2.74832277]
[1762743743442,3.07897134,3639.3,3638.6,2.74830978]
[1762743743768,2.74786089,3639.2,3638.5,2.74836125]
[1762743744067,0.33116866,3639.3,3638.4,0.4543]
[1762743744268,2.74795668,3639.1,3638.4,3.15276053]
[1762743744565,0.05,3639.2,3638.1,1.444912]
[1762743744566,0.3629,3639.2,3638.1,1.444912]
[1762743744757,2.74794211,3639.1,3638.4,2.74839763]
[1762743744955,3.05910413,3639.0,3638.3,2.74852413]
[1762743745137,3.05910413,3639.0,3638.4,2.7484445]
[1762743745336,0.31108421,3639.0,3638.4,2.7484445]
[1762743745533,0.31108421,3639.0,3638.1,0.1852]
[1762743745733,2.74767828,3639.5,3638.2,0.80115281]
[1762743745932,0.25591289,3639.4,3638.1,0.92122287]
[1762743746182,0.3129,3639.8,3637.6,1.47580687]
[1762743746183,0.25593748,3639.3,3637.9,4.74456963]
[1762743746494,0.3129,3639.7,3637.6,0.98235405]
[1762743746495,0.25593748,3639.2,3637.8,0.73602287]
[1762743746782,1.923712,3639.6,3638.0,2.74870659]
[1762743746783,0.25593748,3639.1,3638.0,2.74870659]
[1762743746938,0.25593748,3639.0,3637.9,4.00853716]
[1762743747139,0.30593748,3638.9,3638.1,2.7486769]
[1762743747339,2.74823796,3638.7,3638.0,2.74875215]
[1762743747568,2.74823796,3638.7,3638.1,2.74867802]
[1762743747770,0.33668974,3638.8,3637.8,1.259712]
[1762743747945,0.05,3638.9,3638.0,0.4863]
[1762743748135,0.05,3638.9,3638.3,2.74846463]
[1762743748335,0.05,3638.9,3638.5,2.74833335]
[1762743748535,0.05,3638.9,3638.2,2.74861195]
[1762743748731,0.05,3638.9,3638.3,2.7484863]
[1762743748936,0.60458884,3638.9,3638.4,2.74841411]
[1762743749376,0.60458884,3638.9,3638.2,2.74861195]
[1762743749751,0.1368,3638.7,3638.2,2.74861195]
[1762743749962,0.1368,3638.7,3638.4,2.74838956]
[1762743750168,0.1368,3638.7,3638.5,2.74836757]
[1762743750470,0.1368,3638.7,3638.5,2.74835945]
[1762743750674,0.1368,3638.7,3638.4,2.74839006]
[1762743750853,0.1368,3638.7,3638.5,2.74837658]
[1762743751965,0.1368,3638.7,3638.6,3.21750978]
[1762743752446,0.1368,3638.7,3638.6,3.60299998]
[1762743753041,0.3715,3638.7,3638.6,3.60299998]
[1762743753375,0.39315878,3638.7,3638.6,3.60299998]
[1762743753573,0.1368,3638.7,3638.6,3.60299998]
[1762743753876,0.1368,3638.7,3638.6,6.35130976]
[1762743754047,0.1368,3638.7,3638.6,3.60299998]
[1762743754245,0.1368,3638.7,3638.6,4.07219998]
[1762743754579,0.3129,3639.6,3638.8,2.74809717]
[1762743754580,0.1368,3639.0,3638.8,2.74809717]
[1762743754781,0.25634019,3638.9,3638.6,6.82048284]
[1762743755080,0.1368,3639.0,3638.6,6.35127593]
[1762743755263,0.25639102,3638.9,3638.6,6.35127593]
[1762743755442,0.2347,3638.7,3638.6,3.60299998]
[1762743755643,0.85121977,3638.7,3637.9,3.60299998]
[1762743755844,0.2324,3638.0,3637.4,3.48619086]
[1762743756078,2.74851936,3638.4,3637.4,0.001]
[1762743756408,1.259712,3639.4,3637.4,0.001]
[1762743756409,0.25645134,3638.3,3637.8,2.74886483]
[1762743756562,0.25645134,3638.2,3637.5,3.23543662]
[1762743756766,0.25644758,3638.1,3637.9,2.74883799]
[1762743757078,2.74846136,3638.4,3637.8,2.74888519]
[1762743757260,0.25651007,3638.3,3637.7,2.74896046]
[1762743757454,0.25651007,3638.2,3637.7,2.74896046]
[1762743757770,0.25651007,3638.1,3637.7,2.74896046]
[1762743757968,2.74850973,3638.4,3637.7,2.74896046]
[1762743758165,3.58602405,3638.3,3637.6,2.75006503]
[1762743758344,3.00518774,3638.2,3637.6,0.001]
[1762743758546,3.00521094,3638.1,3637.6,0.001]
[1762743758754,0.55703226,3638.0,3637.6,0.001]
[1762743759078,0.25651117,3637.9,3637.6,0.001]
[1762743759240,0.30052109,3638.0,3637.6,0.001]
[1762743759444,0.25662898,3637.9,3637.6,0.001]
[1762743759676,0.30052109,3638.0,3637.6,0.001]
[1762743759986,0.25662898,3637.9,3637.6,0.001]
[1762743760181,3.06160195,3638.1,3637.6,0.001]
[1762743760404,0.25660549,3638.0,3637.6,0.001]
[1762743760688,0.2347,3637.7,3637.6,0.001]
[1762743761277,0.56427258,3637.7,3637.6,0.001]
[1762743761455,3.31326232,3637.7,3637.6,0.001]
[1762743761662,3.8819479,3637.7,3637.6,0.001]
[1762743762804,3.5698479,3637.7,3637.6,0.001]
[1762743764248,0.25658558,3637.7,3637.6,0.4702]
[1762743764489,0.002,3639.0,3637.6,1.35214881]
[1762743764490,0.3629,3638.9,3637.6,1.35214881]
[1762743764648,0.25630703,3638.8,3638.2,2.74860797]
[1762743764848,2.79813239,3638.9,3638.3,2.74848396]
[1762743764849,0.25630703,3638.7,3638.3,2.74848396]
[1762743765168,0.25630703,3638.6,3638.1,0.1891]
[1762743765345,0.25630703,3638.5,3638.2,2.74861195]
[1762743765545,0.25630703,3638.5,3638.1,0.6754]
[1762743765546,0.1368,3638.5,3638.1,0.6754]
[1762743765779,0.1368,3638.5,3638.4,3.21766086]
[1762743765993,0.002,3639.0,3638.5,2.74836426]
[1762743766158,0.1368,3638.7,3638.5,2.74836426]
[1762743766370,0.1368,3638.7,3638.6,2.74830978]
[1762743766550,0.3129,3638.5,3638.1,0.1368]
[1762743766761,0.1368,3638.7,3638.1,2.88545868]
[1762743766967,0.2563751,3638.6,3638.1,2.88545868]
[1762743767200,0.25644851,3638.5,3637.9,2.74876439]
[1762743767399,0.05,3638.9,3638.1,2.7486875]
[1762743767603,0.25643782,3638.8,3638.4,0.4692]
[1762743767780,0.05,3638.9,3638.4,0.4692]
[1762743767781,0.25643782,3638.7,3638.4,0.4692]
[1762743768099,0.25643782,3638.6,3638.4,0.4692]
[1762743768407,0.05,3638.9,3638.4,0.4692]
[1762743768563,0.25650935,3638.8,3638.4,0.4692]
[1762743768763,0.002,3639.0,3638.2,0.58474881]
[1762743769080,0.30649463,3638.9,3638.4,2.74840744]
[1762743769276,0.25649463,3638.8,3638.2,0.687]
[1762743769472,0.25649463,3638.7,3638.2,0.687]
[1762743769672,0.25649463,3638.6,3637.9,0.73602287]
[1762743769896,0.25649463,3638.5,3637.9,2.74881681]
[1762743770205,0.25672499,3638.4,3637.8,1.23392287]
[1762743770421,0.25672499,3638.3,3637.8,0.73602287]
[1762743770718,2.74831748,3638.6,3637.8,0.4979]
[1762743771006,0.25673653,3638.5,3637.9,2.7488216]
[1762743771206,0.25673653,3638.4,3638.0,2.7487521]
[1762743771496,0.25673653,3638.3,3637.8,0.4979]
[1762743771704,0.25673653,3638.2,3637.8,3.24674119]
[1762743771878,0.27483996,3638.5,3637.9,2.74882846]
[1762743772068,0.256766,3638.4,3637.9,2.74882846]
[1762743772268,0.256766,3638.3,3637.9,2.74882846]
[1762743772469,0.256766,3638.2,3638.1,2.7486875]
[1762743772864,0.256766,3638.2,3638.1,3.4087875]
[1762743773067,0.256766,3638.2,3638.1,0.6601]
[1762743773263,0.491466,3638.2,3637.6,0.73702287]
[1762743773475,0.256766,3638.1,3637.7,2.74897823]
[1762743773675,2.7484335,3638.5,3637.7,2.74893146]
[1762743773889,0.80650288,3638.4,3637.7,2.74892468]
[1762743774091,0.2568361,3638.3,3637.6,1.23492287]
[1762743774327,0.05,3638.9,3638.3,0.4658]
[1762743774526,0.25685307,3638.8,3638.3,0.6601]
[1762743774836,0.24338506,3638.7,3638.3,0.6601]
[1762743775037,0.05,3638.9,3638.3,0.6601]
[1762743775720,0.05,3638.9,3638.3,3.40860966]
[1762743775920,0.05,3638.9,3638.5,2.7483722]
[1762743776122,0.05,3638.9,3638.6,3.60299998]
[1762743776547,0.002,3639.0,3638.6,3.60299998]
[1762743777143,0.05,3638.9,3638.6,3.60299998]
[1762743779123,0.1368,3638.9,3638.8,3.21774747]
[1762743779813,0.1368,3638.9,3638.7,3.60299998]
[1762743780243,0.1368,3638.9,3638.7,6.35117799]
[1762743780558,0.1368,3638.9,3638.7,3.60299998]
[1762743780947,0.1368,3638.9,3638.7,6.35122797]
[1762743781443,0.1368,3638.9,3638.8,2.74815873]
[1762743781648,0.1368,3638.9,3638.8,3.21775873]
[1762743781874,0.002,3639.0,3638.9,2.74808321]
[1762743782068,0.002,3639.0,3638.9,4.42929183]
[1762743782549,0.002,3639.0,3638.9,4.97159583]
[1762743782726,0.002,3639.0,3638.9,6.68543309]
[1762743782932,0.002,3639.0,3638.9,5.94942447]
[1762743783262,0.002,3639.0,3638.9,7.63506737]
[1762743783463,0.002,3639.0,3638.9,9.11087424]
[1762743784071,0.002,3639.0,3638.9,1.69668371]
[1762743784233,0.002,3639.0,3638.6,1.21072844]
[1762743784438,0.002,3639.0,3638.9,3.21768321]
[1762743784769,0.002,3639.0,3638.9,0.4696]
[1762743785561,0.002,3639.0,3638.9,3.21768321]
[1762743786075,0.002,3639.0,3638.9,4.33743407]
[1762743786234,0.002,3639.0,3638.9,5.13858688]
[1762743786439,3.06132654,3641.1,3639.1,1.665216]
[1762743786638,0.25630946,3640.5,3639.9,2.74730993]
[1762743786838,0.25630946,3640.4,3639.3,1.14004561]
[1762743787038,0.25630946,3640.3,3640.2,2.74709147]
[1762743787246,1.392212,3640.9,3640.2,2.74709147]
[1762743787447,0.25613667,3640.8,3640.2,3.21667608]
[1762743787672,0.25613667,3640.7,3640.2,0.4696]
[1762743787873,0.1325,3640.9,3640.2,0.4696]
[1762743788045,0.25612642,3640.8,3640.6,2.7467843]
[1762743788243,0.3149,3641.8,3640.7,0.02746724]
[1762743788577,0.25594181,3641.7,3640.8,0.4696]
[1762743788762,0.58762207,3641.6,3640.8,0.4696]
[1762743788962,0.3149,3641.8,3640.9,2.74656862]
[1762743788963,0.25594181,3641.5,3640.9,2.74656862]
[1762743789168,0.25594181,3641.4,3640.8,0.4696]
[1762743789383,1.259712,3641.7,3641.0,2.74644522]
[1762743789550,0.65625967,3641.6,3640.9,2.74656759]
[1762743789750,0.2556988,3641.5,3640.9,2.74656759]
[1762743790052,0.2556988,3641.5,3640.7,2.74671778]
[1762743790254,0.2556988,3641.5,3640.7,0.4756]
[1762743790474,0.2556988,3641.5,3641.1,2.74635068]
[1762743790661,2.74598916,3641.7,3640.8,0.4756]
[1762743790981,3.001586,3641.6,3640.4,0.405504]
[1762743791207,0.55568243,3641.5,3640.1,0.1828]
[1762743791364,3.00173627,3641.4,3640.3,2.74702634]
[1762743791709,0.25540842,3641.3,3640.1,1.442512]
[1762743791848,2.79567246,3642.1,3639.8,1.259712]
[1762743791849,0.3652,3640.2,3639.8,1.259712]
[1762743792050,0.3652,3640.2,3639.3,1.21014161]
[1762743792051,0.3652,3640.2,3639.6,2.74749646]
[1762743792284,2.87935066,3640.6,3639.8,2.74734299]
[1762743792446,3.15397927,3640.6,3639.4,0.4756]
[1762743792660,2.74690941,3640.5,3639.7,2.74740388]
[1762743792858,0.31539793,3640.5,3639.4,0.4756]
[1762743793046,2.74695088,3640.4,3639.4,0.4756]
[1762743793251,0.31539793,3640.5,3639.5,2.74758126]
[1762743793452,2.74726915,3640.0,3639.2,0.1828]
[1762743793684,2.74757423,3639.6,3638.7,0.73454161]
[1762743793872,0.27475742,3639.5,3638.7,2.74821745]
[1762743794053,0.1368,3639.3,3638.6,2.74830273]